{"text_format":"1","workbook":"xlsx","n_sheets":2,"sheets":["Oficjalne","pkt szkół"],"not_rendered":{"charts":0,"images":2,"macros":1,"external_links":0,"defined_names":1,"comments":0,"pivot_tables":0},"unopened":[],"bounds":{"document_bytes":16777216,"sheet_cells":100000,"rows_first":2000,"rows_last":500,"rows_between":2000,"halvings":0,"cell_chars":16384,"cell_head_chars":4096},"cells_cut":0,"cells_raw":0,"read":"whole","date_system":"1900"}

{"sheet":"Oficjalne","index":0,"n_rows":300,"n_cols":15,"rows_kept":300,"cut":false,"hidden":false,"merged":[]}
[]
[]
["Dolnośląskie Igrzyska Dzieci i Dolnośląskie Igrzyska Młodzieży Szkolnej"]
[null,null,null,null,"                              w narciarstwie biegowym"]
[]
[null,null,null,null,"                    Szklarska Poręba  Jakuszyce 2020"]
[]
[null,"JURY"]
[null,"Kierownik Zawodów",null,"Zbigniew Stępień"]
[null,"Sędzia Główny",null,"Dorota Mężyk"]
[null,"Kierownik Tras",null,"Marek Operacz"]
[]
["M ","Nr st","Nazwisko i imię",null,null,"Rok","Szkoła",null,null,null,"Wynik","KL","PKT ind.","pkt OOM","różnica"]
["Igrzyska Dzieci chłopcy 2009 i mł.        dystans 1 km"]
[1,31,"Piechulski Kamil",null,null,"2009","SP1 Piechowce",null,null,null,"00:01:38.600"]
[2,46,"Lewandowski Maksymilian",null,null,"2009","SP1 Szklarska Poręba",null,null,null,"00:01:42.900",null,null,null,{"$f":"K16-$K$15","v":"00:00:04.300"}]
[3,29,"Stolarczyk Kamil",null,null,"2009","SP1 Piechowce",null,null,null,"00:01:42.900",null,null,null,{"$f":"K17-$K$15","v":"00:00:04.300"}]
[4,39,"Sinkiewicz Łukasz",null,null,"2010","PSP NR 6",null,null,null,"00:01:43.600",null,null,null,"00:00:05"]
[5,25,"Żyłkiewicz Tymon",null,null,"2009","SP 1 Świeradów-Zdrój",null,null,null,"00:01:45.500",null,null,null,"00:00:06.900"]
[6,41,"Gajowski Jędrzej",null,null,"2010","Szkoła Podstawowa w Karpaczu",null,null,null,"00:01:47.100",null,null,null,"00:00:08.500"]
[7,38,"Urbaniak Mikołaj",null,null,"2010","GZSP Czarny Bór",null,null,null,"00:01:49.100",null,null,null,"00:00:10.500"]
[8,4,"Szulakowski Wojciech",null,null,"2010","SP1 Piechowce",null,null,null,"00:01:50.100",null,null,null,"00:00:11.500"]
[9,272,"Gorczyński Krzysztof",null,null,"2011","SPF CLEVER",null,null,null,"00:01:53.100",null,null,null,"00:00:14.500"]
[10,10,"Sowa Bartłomiej",null,null,"2009","GZSP Czarny Bór",null,null,null,"00:01:55.100",null,null,null,"00:00:16.500"]
[11,5,"Szymański Filip",null,null,"2009","SP Sokołowsko",null,null,null,"00:01:55.400",null,null,null,"00:00:16.800"]
[12,2,"Rutkowski Kajetan",null,null,"2009","SP 1 Świeradów-Zdrój",null,null,null,"00:01:56.600",null,null,null,"00:00:18"]
[13,43,"Mucha Patryk",null,null,"2009","GZSP Czarny Bór",null,null,null,"00:01:57.100",null,null,null,"00:00:18.500"]
[14,3,"Majka Bartosz",null,null,"2009","ZEW Włodowice",null,null,null,"00:01:59.800",null,null,null,"00:00:21.200"]
[15,15,"Górski Patryk",null,null,"2011","SP1 Piechowce",null,null,null,"00:02:00.500",null,null,null,"00:00:21.900"]
[16,36,"Narkiewicz Kamil",null,null,"2010","SP1 Piechowce",null,null,null,"00:02:04.700",null,null,null,"00:00:26.100"]
[17,42,"Kukułowicz Marcel",null,null,"2010","SP Sokołowsko",null,null,null,"00:02:05.900",null,null,null,"00:00:27.300"]
[18,13,"Narkiewicz Borys",null,null,"2011","SP1 Piechowce",null,null,null,"00:02:06.300",null,null,null,"00:00:27.700"]
[19,47,"Nowakowski Szymon",null,null,"2009","SP Sokołowsko",null,null,null,"00:02:09.400",null,null,null,"00:00:30.800"]
[20,35,"Chrabąszcz Igor",null,null,"2010","SP1 Piechowce",null,null,null,"00:02:13",null,null,null,"00:00:34.400"]
[21,271,"Bigda Tymoteusz",null,null,"2011","SP 2 Piechowice",null,null,null,"00:02:14.100",null,null,null,"00:00:35.500"]
[22,24,"Guziński Kamil",null,null,"2009","SP Sokołowsko",null,null,null,"00:02:17.100",null,null,null,"00:00:38.500"]
[23,33,"Cieleban Ignacy",null,null,"2009","SP Sokołowsko",null,null,null,"00:02:19.600",null,null,null,"00:00:41"]
[24,23,"Dewiszek Bartosz",null,null,"2009","PSP w Mieroszowie",null,null,null,"00:02:21.500",null,null,null,"00:00:42.900"]
[25,37,"Dziewulak Nikodem",null,null,"2010","SP Sosnówka",null,null,null,"00:02:21.700",null,null,null,"00:00:43.100"]
[26,11,"Iwanicki Konrad",null,null,"2010","SP1 Szklarska Poręba",null,null,null,"00:02:27.100",null,null,null,"00:00:48.500"]
[27,7,"Milewski Michał",null,null,"2009","SP 1 Świeradów-Zdrój",null,null,null,"00:02:30.500",null,null,null,"00:00:51.900"]
[28,6,"Kurzeja Franciszek",null,null,"2010","SP1 Szklarska Poręba",null,null,null,"00:02:35.400",null,null,null,"00:00:56.800"]
[29,48,"Grześ Antoni",null,null,"2010","SP1 Szklarska Poręba",null,null,null,"00:02:39",null,null,null,"00:01:00.400"]
[30,32,"Kubiak Jakub",null,null,"2009","SP Sosnówka",null,null,null,"00:02:44.900",null,null,null,"00:01:06.300"]
[31,44,"Janikowski Mariusz",null,null,"2010","SP Wojcieszyce",null,null,null,"00:02:55",null,null,null,"00:01:16.400"]
[32,16,"Naskevich Tsimur",null,null,"2009","SP Wojcieszyce",null,null,null,"00:02:55.700",null,null,null,"00:01:17.100"]
[33,22,"Zdański-Siuta Michał",null,null,"2011","SP1 Piechowce",null,null,null,"00:03:27.500",null,null,null,"00:01:48.900"]
[34,30,"Trojanowski Julian",null,null,"2012","SP5 Szklarska Poręba",null,null,null,"00:03:38.200",null,null,null,"00:01:59.600"]
[35,21,"Szajnowski  Filip ",null,null,"2011","ZSP Lubawka",null,null,null,"00:04:01.200",null,null,null,"00:02:22.600"]
[36,26,"Majewski Filip",null,null,"2009","SP Kopaniec",null,null,null,"00:04:23.900",null,null,null,"00:02:45.300"]
[37,17,"Kutny Maksymilian",null,null,"2012","SP5 Szklarska Poręba",null,null,null,"00:04:54",null,null,null,"00:03:15.400"]
[]
[null,null,"Zgłoszonych : 48"]
[null,null,"Nie ukończyło : 0"]
[null,null,"Nie wystartowało : 11 (  1 Stokowiec Nikita) (  9 Ławrynowicz Krzysztof) (  12 Jezierski Marcel)        "]
[null,null,"(  14 Cejko Szymon) (  18 Bolek Dawid) (  20 Łabuń Filip) (  27 Czaplicki Oskar) (  28 Krawczyk Bartosz)"]
[null,null," (  34 Krawczyk Kacper) (  40 Gleń Mateusz) (  45 Ławniczak Michał)"]
[null,null,"Dyskwalifikacja : 0"]
[null,null,"Ukończyło : 37"]
[]
[]
[]
[]
["Igrzyska Dzieci dziewczęta 2009 i mł.        dystans 1 km"]
[1,58,"Dereń  Hanna ",null,null,"2010","ZSP Lubawka",null,null,null,"00:01:24.700"]
[2,54,"Gancarek Anna",null,null,"2011","SP1 Piechowce",null,null,null,"00:01:38",null,null,null,{"$f":"K66-$K$65","v":"00:00:13.300"}]
[3,55,"Kowalczyk Marta",null,null,"2009","SP15 Jelenia Góra",null,null,null,"00:01:51.500",null,null,null,{"$f":"K67-$K$65","v":"00:00:26.800"}]
[4,89,"Serafin Aleksandra",null,null,"2009","SP1 Szklarska Poręba",null,null,null,"00:01:55.400",null,null,null,"00:00:30.700"]
[5,53,"Stefaniak Wiktoria",null,null,"2010","PSP w Mieroszowie",null,null,null,"00:01:56.200",null,null,null,"00:00:31.500"]
[6,56,"Pabiś Martyna",null,null,"2010","SP Sosnówka",null,null,null,"00:01:58",null,null,null,"00:00:33.300"]
[7,57,"Mikłasz Nadia",null,null,"2011","SP Sokołowsko",null,null,null,"00:02:01",null,null,null,"00:00:36.300"]
[8,72,"Bogusławska  Zuzanna ",null,null,"2011","ZSP Lubawka",null,null,null,"00:02:03.700",null,null,null,"00:00:39"]
[9,79,"Głowacka Julia",null,null,"2010","SP Sokołowsko",null,null,null,"00:02:04.700",null,null,null,"00:00:40"]
[10,52,"Kotylak Zofia",null,null,"2011","SP 2 Piechowice",null,null,null,"00:02:06.800",null,null,null,"00:00:42.100"]
[11,49,"Tarnawska Gabriela",null,null,"2009","SP1 Piechowce",null,null,null,"00:02:10.100",null,null,null,"00:00:45.400"]
[12,90,"Plewa Cecylia",null,null,"2009","SP Sosnówka",null,null,null,"00:02:15.200",null,null,null,"00:00:50.500"]
[13,61,"Marczak Justyna",null,null,"2010","GZSP Czarny Bór",null,null,null,"00:02:15.400",null,null,null,"00:00:50.700"]
[14,88,"Krawietz Hanna",null,null,"2009","SP1 Szklarska Poręba",null,null,null,"00:02:16.300",null,null,null,"00:00:51.600"]
[15,84,"Winter Maja",null,null,"2009","Szkoła Podstawowa w Karpaczu",null,null,null,"00:02:17.700",null,null,null,"00:00:53"]
[16,67,"Walasik Julia",null,null,"2011","SP Sokołowsko",null,null,null,"00:02:18",null,null,null,"00:00:53.300"]
[17,80,"Pabiś Nadia",null,null,"2009","SP Sosnówka",null,null,null,"00:02:18.400",null,null,null,"00:00:53.700"]
[18,60,"Mańska Victoria",null,null,"2011","PSP NR 6",null,null,null,"00:02:21.700",null,null,null,"00:00:57"]
[19,74,"Kujałowicz Aleksandra",null,null,"2010","SP1 Piechowce",null,null,null,"00:02:21.900",null,null,null,"00:00:57.200"]
[20,50,"WARDZIŃSKA KAJA",null,null,"2011","PSP w Kowalowej",null,null,null,"00:02:23.100",null,null,null,"00:00:58.400"]
[21,65,"Falkowska Magdalena",null,null,"2009","Szkoła Podstawowa w Karpaczu",null,null,null,"00:02:29.100",null,null,null,"00:01:04.400"]
[22,83,"Golec Zofia",null,null,"2009","SP Podgórzyn",null,null,null,"00:02:31.300",null,null,null,"00:01:06.600"]
[23,75,"Nowicka Klaudia",null,null,"2009","SP15 Jelenia Góra",null,null,null,"00:02:31.600",null,null,null,"00:01:06.900"]
[24,87,"Gawlik Sara",null,null,"2009","SP15 Jelenia Góra",null,null,null,"00:02:34.200",null,null,null,"00:01:09.500"]
[25,81,"Klag  Jagoda ",null,null,"2010","ZSP Lubawka",null,null,null,"00:02:34.300",null,null,null,"00:01:09.600"]
[26,86,"Kulik Michalina",null,null,"2009","SP Podgórzyn",null,null,null,"00:02:39.700",null,null,null,"00:01:15"]
[27,70,"Przybylska Amelia",null,null,"2011","SP Sokołowsko",null,null,null,"00:02:41.300",null,null,null,"00:01:16.600"]
[28,68,"Zięcina Oliwia",null,null,"2009","PSP w Mieroszowie",null,null,null,"00:02:41.800",null,null,null,"00:01:17.100"]
[29,77,"Renczmiń Urszula",null,null,"2009","SP15 Jelenia Góra",null,null,null,"00:02:41.900",null,null,null,"00:01:17.200"]
[30,85,"Schroder Maja",null,null,"2010","SP1 Szklarska Poręba",null,null,null,"00:02:45",null,null,null,"00:01:20.300"]
[31,69,"Bartkiewicz Daria",null,null,"2009","SP1 Szklarska Poręba",null,null,null,"00:02:47.800",null,null,null,"00:01:23.100"]
[32,66,"Sidorowska Kornelia",null,null,"2010","SP Sosnówka",null,null,null,"00:02:47.900",null,null,null,"00:01:23.200"]
[33,91,"Kimbort Matylda",null,null,"2009","Szkoła Podstawowa w Karpaczu",null,null,null,"00:02:54.300",null,null,null,"00:01:29.600"]
[34,78,"Sidorowska Julia",null,null,"2010","SP Sosnówka",null,null,null,"00:02:54.400",null,null,null,"00:01:29.700"]
[35,64,"Fischer Olga",null,null,"2011","SP Sokołowsko",null,null,null,"00:03:07.400",null,null,null,"00:01:42.700"]
[36,76,"Wiatr Aleksandra",null,null,"2010","SP1 Piechowce",null,null,null,"00:03:11",null,null,null,"00:01:46.300"]
[37,92,"Fila Kinga",null,null,"2009","SP Sokołowsko",null,null,null,"00:03:18",null,null,null,"00:01:53.300"]
[38,273,"Smolińska Nikola",null,null,"2009","SP Wojcieszyce",null,null,null,"00:03:31.100",null,null,null,"00:02:06.400"]
[39,62,"Szardetta Anastazja",null,null,"2011","SP5 Szklarska Poręba",null,null,null,"00:05:02",null,null,null,"00:03:37.300"]
[]
[null,null,"Zgłoszonych : 44"]
[null,null,"Nie ukończyło : 0"]
[null,null,"Nie wystartowało : 5 (  51 Jezierska Kalina) (  59 Sikora Anna) (  63 Żurawska Oliwia)  "]
[null,null,"         (  71 Czech Matylda) (  82 Gazdowicz Maja)"]
[null,null,"Dyskwalifikacja : 0"]
[null,null,"Ukończyło : 39"]
[]
["Igrzyska Dzieci chłopcy 2008        dystans 2 km"]
[1,112,"Bodzek  Stanisław",null,null,"2008","ZSP Lubawka",null,null,null,"00:03:30.700"]
[2,117,"WEIGELT SZYMON",null,null,"2008","SP4 Bielawa",null,null,null,"00:03:33.400",null,null,null,{"$f":"K114-$K$15","v":"00:01:54.800"}]
[3,101,"Gałkowski  Mateusz ",null,null,"2008","ZSP Lubawka",null,null,null,"00:03:47.300",null,null,null,"00:02:08.700"]
[4,116,"Fugiel Igor",null,null,"2008","Szkoła Podstawowa w Karpaczu",null,null,null,"00:03:49.800",null,null,null,"00:02:11.200"]
[5,118,"Skalski Kacper",null,null,"2008","SP Sokołowsko",null,null,null,"00:03:50.400",null,null,null,"00:02:11.800"]
[6,115,"Matusik Konrad",null,null,"2008","GZSP Czarny Bór",null,null,null,"00:03:52.400",null,null,null,"00:02:13.800"]
[7,97,"Pietruszka Robert",null,null,"2008","SP 2 Piechowice",null,null,null,"00:04:01.100",null,null,null,"00:02:22.500"]
[8,104,"Bafia Mikołaj",null,null,"2008","SP Sokołowsko",null,null,null,"00:04:15.400",null,null,null,"00:02:36.800"]
[9,274,"Sopata  Antoni ",null,null,"2008","ZSP Lubawka",null,null,null,"00:04:27",null,null,null,"00:02:48.400"]
[10,109,"Bukała Aleksander",null,null,"2008","SP15 Jelenia Góra",null,null,null,"00:04:38",null,null,null,"00:02:59.400"]
[11,106,"Gułaj Mikołaj",null,null,"2008","SP15 Jelenia Góra",null,null,null,"00:04:58.800",null,null,null,"00:03:20.200"]
[12,114,"Głogowski Michał",null,null,"2008","SP Podgórzyn",null,null,null,"00:05:07.200",null,null,null,"00:03:28.600"]
[13,98,"Janiak  Tymoteusz ",null,null,"2008","ZSP Lubawka",null,null,null,"00:05:08.700",null,null,null,"00:03:30.100"]
[14,96,"Paszkowski Antoni",null,null,"2008","SP Kopaniec",null,null,null,"00:05:12",null,null,null,"00:03:33.400"]
[15,94,"Woźniak Mateusz",null,null,"2008","PSP w Mieroszowie",null,null,null,"00:05:21.700",null,null,null,"00:03:43.100"]
[16,93,"Szaniawski Jacek",null,null,"2008","SP 1 Świeradów-Zdrój",null,null,null,"00:05:24.700",null,null,null,"00:03:46.100"]
[17,111,"Ewertowski Kuba",null,null,"2008","SP15 Jelenia Góra",null,null,null,"00:05:30.200",null,null,null,"00:03:51.600"]
[18,113,"Łuczkiewicz Seweryn",null,null,"2008","SP15 Jelenia Góra",null,null,null,"00:05:39.600",null,null,null,"00:04:01"]
[19,105,"Nowokuński Natan",null,null,"2008","SP Wojcieszyce",null,null,null,"00:06:04.900",null,null,null,"00:04:26.300"]
[20,102,"Lachowicz Mateusz",null,null,"2008","SP1 Szklarska Poręba",null,null,null,"00:06:31.500",null,null,null,"00:04:52.900"]
[21,95,"Górka Patryk",null,null,"2008","SP Wojcieszyce",null,null,null,"00:06:48.800",null,null,null,"00:05:10.200"]
[22,110,"Gibes Damian",null,null,"2008","SP Kopaniec",null,null,null,"00:06:58.700",null,null,null,"00:05:20.100"]
[23,99,"Usowicz Kacper",null,null,"2008","SP15 Jelenia Góra",null,null,null,"00:07:04",null,null,null,"00:05:25.400"]
[]
[null,null,"Zgłoszonych : 26"]
[null,null,"Nie ukończyło : 0"]
[null,null,"Nie wystartowało : 3 (  100 Melka Robert) (  103 Kłosiński Arkadiusz) (  107 Mucha Patryk)"]
[null,null,"Dyskwalifikacja : 0"]
[null,null,"Ukończyło : 23"]
[]
["Igrzyska Dzieci dziewczęta 2008        dystans 2 km"]
[1,141,"Lubos  Małgorzata ",null,null,"2008","ZSP Lubawka",null,null,null,"00:03:27.600"]
[2,140,"Harasym Michalina",null,null,"2008","ZSP Wysoka",null,null,null,"00:03:38",null,null,null,{"$f":"K145-$K$15","v":"00:01:59.400"}]
[3,127,"Kmiecik  Kornelia ",null,null,"2008","ZSP Lubawka",null,null,null,"00:03:56.400",null,null,null,"00:02:17.800"]
[4,138,"Bizoń  Maria ",null,null,"2008","ZSP Lubawka",null,null,null,"00:04:15.800",null,null,null,"00:02:37.200"]
[5,139,"Urbaniak Lena",null,null,"2008","Szkoła Podstawowa w Karpaczu",null,null,null,"00:04:22.100",null,null,null,"00:02:43.500"]
[6,128,"Ryś Anita",null,null,"2008","SP1 Piechowce",null,null,null,"00:04:28.800",null,null,null,"00:02:50.200"]
[7,134,"Russek Zuzanna",null,null,"2008","SP Sosnówka",null,null,null,"00:04:31.200",null,null,null,"00:02:52.600"]
[8,135,"Draheim Aneta",null,null,"2008","Szkoła Podstawowa w Karpaczu",null,null,null,"00:04:39.200",null,null,null,"00:03:00.600"]
[9,130,"Gorczyńska Anna",null,null,"2008","SPF CLEVER",null,null,null,"00:04:44.800",null,null,null,"00:03:06.200"]
[10,136,"Renczmiń Olga",null,null,"2008","SP15 Jelenia Góra",null,null,null,"00:04:52.900",null,null,null,"00:03:14.300"]
[11,137,"Kuchta Patrycja",null,null,"2008","SP Sokołowsko",null,null,null,"00:04:55.500",null,null,null,"00:03:16.900"]
[12,119,"Wardzińska Iga",null,null,"2008","PSP w Kowalowej",null,null,null,"00:05:05.700",null,null,null,"00:03:27.100"]
[13,129,"Grzecznik Zuzanna",null,null,"2008","Szkoła Podstawowa w Karpaczu",null,null,null,"00:05:13.800",null,null,null,"00:03:35.200"]
[14,123,"Wojciechowska Lena",null,null,"2008","PSP w Mieroszowie",null,null,null,"00:05:14.200",null,null,null,"00:03:35.600"]
[15,120,"Woźniak Kamila",null,null,"2008","PSP w Mieroszowie",null,null,null,"00:05:25.500",null,null,null,"00:03:46.900"]
[16,125,"Multan Maria",null,null,"2008","Szkoła Podstawowa w Karpaczu",null,null,null,"00:05:33.200",null,null,null,"00:03:54.600"]
[17,132,"Pływaczyk Julia",null,null,"2008","GZSP Czarny Bór",null,null,null,"00:05:34.800",null,null,null,"00:03:56.200"]
[18,122,"Kobiela Milena",null,null,"2008","SP5 Szklarska Poręba",null,null,null,"00:05:55.400",null,null,null,"00:04:16.800"]
[19,121,"Pyziak Wiktoria",null,null,"2008","SP Wojcieszyce",null,null,null,"00:06:03.700",null,null,null,"00:04:25.100"]
[]
[null,null,"Zgłoszonych : 23"]
[null,null,"Nie ukończyło : 0"]
[null,null,"Nie wystartowało : 4 (  124 Wawrzyńczak Ludwika) (  126 Wdowiak Hanna) (  131 Pilarczyk Pola) "]
[null,null,"         (  133 Kobylak Julia)"]
[null,null,"Dyskwalifikacja : 0"]
[null,null,"Ukończyło : 19"]
[]
["Igrzyska Dzieci chłopcy 2007 dyst.(2x1,5km) 3 km"]
[1,173,"Majka Wojciech",null,null,"2007","ZEW Włodowice",null,null,null,"00:02:46.200"]
[2,179,"Urbaniak Kajetan",null,null,"2007","GZSP Czarny Bór",null,null,null,"00:03:13.800",null,null,null,{"$f":"K173-$K$15","v":"00:01:35.200"}]
[3,175,"Jośko Radosław",null,null,"2007","SP1 Piechowce",null,null,null,"00:03:17.100",null,null,null,"00:01:38.500"]
[4,172,"Kosmacz Maksymilian",null,null,"2007","SP5 Szklarska Poręba",null,null,null,"00:03:18.500",null,null,null,"00:01:39.900"]
[5,184,"Siwa Kazimierz",null,null,"2007","SP-1 Kamienna Góra",null,null,null,"00:03:24.900",null,null,null,"00:01:46.300"]
[6,183,"Jedziniak Jakub",null,null,"2007","SP5 Szklarska Poręba",null,null,null,"00:03:28.400",null,null,null,"00:01:49.800"]
[7,180,"Piotrowski Bartłomiej",null,null,"2007","PSP NR 6",null,null,null,"00:03:31.700",null,null,null,"00:01:53.100"]
[8,182,"Marczak Maciej",null,null,"2007","GZSP Czarny Bór",null,null,null,"00:03:56.200",null,null,null,"00:02:17.600"]
[9,185,"Wilczyński  Marcel ",null,null,"2007","ZSP Lubawka",null,null,null,"00:04:04.200",null,null,null,"00:02:25.600"]
[10,177,"Nadziejko Patryk",null,null,"2007","Szkoła Podstawowa w Karpaczu",null,null,null,"00:04:06.200",null,null,null,"00:02:27.600"]
[11,181,"Paliński Paweł",null,null,"2007","SP1 Szklarska Poręba",null,null,null,"00:04:10",null,null,null,"00:02:31.400"]
[12,174,"Górski Igor",null,null,"2007","SP15 Jelenia Góra",null,null,null,"00:04:20.600",null,null,null,"00:02:42"]
[13,186,"Świtalski Tymon",null,null,"2007","SP1 Szklarska Poręba",null,null,null,"00:04:29.300",null,null,null,"00:02:50.700"]
[14,178,"Wójcik Kosma",null,null,"2007","SP1 Szklarska Poręba",null,null,null,"00:04:35.700",null,null,null,"00:02:57.100"]
[15,276,"Kimbort Szczepan",null,null,"2007","Szkoła Podstawowa w Karpaczu",null,null,null,"00:04:42.300",null,null,null,"00:03:03.700"]
[16,188,"Wojtak Wojciech",null,null,"2007","SP Kopaniec",null,null,null,"00:04:44.700",null,null,null,"00:03:06.100"]
[17,187,"Kożuch  Seweryn ",null,null,"2007","ZSP Lubawka",null,null,null,"00:05:11.200",null,null,null,"00:03:32.600"]
[18,170,"Pilc Franciszek",null,null,"2007","SP Kopaniec",null,null,null,"00:05:20.100",null,null,null,"00:03:41.500"]
[19,176,"Czasnojć Olaf",null,null,"2007","SP1 Szklarska Poręba",null,null,null,"00:07:00.900",null,null,null,"00:05:22.300"]
[null,null,"Zgłoszonych : 19"]
[null,null,"Nie ukończyło : 0"]
[null,null,"Nie wystartowało : 0"]
[null,null,"Dyskwalifikacja : 0"]
[null,null,"Ukończyło : 19"]
[]
["Igrzyska Dzieci dziewczęta 2007 dyst.(2x1,5km) 3 km"]
[1,246,"BIERNAT NATALIA",null,null,"2007","SP5 Szklarska Poręba",null,null,null,"00:03:17"]
[2,245,"Sinkiewicz Justyna",null,null,"2007","PSP NR 6",null,null,null,"00:03:19.800",null,null,null,{"$f":"K199-$K$15","v":"00:01:41.200"}]
[3,248,"Tarnawska Julia",null,null,"2007","SP1 Piechowce",null,null,null,"00:03:23",null,null,null,"00:01:44.400"]
[4,231,"Liber  Milena ",null,null,"2007","ZSP Lubawka",null,null,null,"00:03:28.500",null,null,null,"00:01:49.900"]
[5,256,"Fedoruk  Julia ",null,null,"2007","ZSP Lubawka",null,null,null,"00:03:46.400",null,null,null,"00:02:07.800"]
[6,238,"Zwolińska Anita",null,null,"2007","SP5 Szklarska Poręba",null,null,null,"00:03:55",null,null,null,"00:02:16.400"]
[7,254,"Król Weronika",null,null,"2007","GZSP Czarny Bór",null,null,null,"00:03:57.500",null,null,null,"00:02:18.900"]
[8,236,"Kujałowicz Katarzyna",null,null,"2007","SP1 Piechowce",null,null,null,"00:03:59.400",null,null,null,"00:02:20.800"]
[9,229,"Zonenberg Natalia",null,null,"2007","PSP nr 5",null,null,null,"00:04:18.400",null,null,null,"00:02:39.800"]
[10,252,"Plewa Antonina",null,null,"2007","SP Sosnówka",null,null,null,"00:04:24.200",null,null,null,"00:02:45.600"]
[11,277,"Macconko Martyna",null,null,"2007","SP1 Piechowce",null,null,null,"00:04:51",null,null,null,"00:03:12.400"]
[12,228,"Warchoł Bianka",null,null,"2007","SP Wojcieszyce",null,null,null,"00:05:00.100",null,null,null,"00:03:21.500"]
[13,242,"Rutkowska Maja",null,null,"2007","GZSP Czarny Bór",null,null,null,"00:05:15.200",null,null,null,"00:03:36.600"]
[14,255,"Kaczmarek Martyna",null,null,"2007","Szkoła Podstawowa w Karpaczu",null,null,null,"00:05:26.300",null,null,null,"00:03:47.700"]
[15,235,"Warchoł Maja",null,null,"2007","SP Wojcieszyce",null,null,null,"00:05:30.900",null,null,null,"00:03:52.300"]
[16,232,"Janas Zuzanna",null,null,"2007","SP1 Piechowce",null,null,null,"00:05:38.900",null,null,null,"00:04:00.300"]
[17,243,"Rola Gabriela",null,null,"2007","Szkoła Podstawowa w Karpaczu",null,null,null,"00:05:49.600",null,null,null,"00:04:11"]
[18,237,"Ochmańska Barbara",null,null,"2007","SP15 Jelenia Góra",null,null,null,"00:06:00.600",null,null,null,"00:04:22"]
[19,250,"Kirkis Zuzanna",null,null,"2007","SP15 Jelenia Góra",null,null,null,"00:06:03.600",null,null,null,"00:04:25"]
[20,234,"Żuchowska Nadia",null,null,"2007","SP1 Szklarska Poręba",null,null,null,"00:06:16.300",null,null,null,"00:04:37.700"]
[21,241,"Nowak Oliwia",null,null,"2007","SP Wojcieszyce",null,null,null,"00:07:16.600",null,null,null,"00:05:38"]
[]
[null,null,"Zgłoszonych : 29"]
[null,null,"Nie ukończyło : 0"]
[null,null,"Nie wystartowało : 8 (  233 Wyszyńska Patrycja) (  239 Napierała Andżelika) (  240 Mrówka Karolina)     "]
[null,null,"(  244 Wojciechowska Patrycja) (  247 Filip Wiktoria) (  249 Kotlarz Amelia) (  278 Gleń Oliwia) "]
[null,null,"(  253 Krok Orzechowska  Paulina )"]
[null,null,"Dyskwalifikacja : 0"]
[null,null,"Ukończyło : 21"]
[]
["Igrzyska Młodzieży  chł (2005 i 2006) dyst.(2x1,5km) 3 km"]
[1,153,"Potoniec  Jakub",null,null,"2005","LUBWAKA",null,null,null,"00:05:15.400"]
[2,162,"ZAWÓŁ MACIEJ",null,null,"2005","ZSO i MS SZKLARSKA POREBA",null,null,null,"00:05:45.800",null,null,null,{"$f":"K230-$K$15","v":"00:04:07.200"}]
[3,160,"Filip Dawid",null,null,"2005","GZSzP w Czarnym Borze",null,null,null,"00:06:24.200",null,null,null,"00:04:45.600"]
[4,146,"PAWLUK WIKTOR",null,null,"2005","ZSO i MS SZKLARSKA POREBA",null,null,null,"00:06:25.600",null,null,null,"00:04:47"]
[5,163,"Musielski Jan",null,null,"2006","SP Sosnówka",null,null,null,"00:06:29.500",null,null,null,"00:04:50.900"]
[6,150,"Miller Dawid",null,null,"2005","ZSO i MS SZKLARSKA POREBA",null,null,null,"00:06:34.900",null,null,null,"00:04:56.300"]
[7,154,"Balakowski Amadeusz",null,null,"2006","Gim5",null,null,null,"00:06:46.600",null,null,null,"00:05:08"]
[8,156,"Gorczyński Kajetan",null,null,"2006","SPF CLEVER",null,null,null,"00:06:46.700",null,null,null,"00:05:08.100"]
[9,168,"Gajowski Hubert ",null,null,"2005","SP Karpacz",null,null,null,"00:06:57.700",null,null,null,"00:05:19.100"]
[10,147,"Gułaj Kajetan",null,null,"2006","Gim5",null,null,null,"00:07:09.300",null,null,null,"00:05:30.700"]
[11,167,"Zwolenik Michał",null,null,"2006","Gim5",null,null,null,"00:07:11.100",null,null,null,"00:05:32.500"]
[12,157,"Szulczyński Michał",null,null,"2006","ZSO i MS SZKLARSKA POREBA",null,null,null,"00:07:37",null,null,null,"00:05:58.400"]
[13,151,"Szymański Oliwier",null,null,"2005","SP Sokołowsko",null,null,null,"00:07:43.600",null,null,null,"00:06:05"]
[14,145,"Luty Maksymilian ",null,null,"2006","SP Karpacz",null,null,null,"00:08:21.500",null,null,null,"00:06:42.900"]
[15,143,"Tomalak Jakub",null,null,"2005","SP Podgorzyn",null,null,null,"00:08:38.600",null,null,null,"00:07:00"]
[16,152,"Głowiński Sebastian",null,null,"2005","SP Sosnówka",null,null,null,"00:08:39.300",null,null,null,"00:07:00.700"]
[17,159,"Ludwisiak Jakub",null,null,"2006","ZSO i MS SZKLARSKA POREBA",null,null,null,"00:08:45.700",null,null,null,"00:07:07.100"]
[18,158,"Denis Maks ",null,null,"2006","SP Karpacz",null,null,null,"00:09:09.600",null,null,null,"00:07:31"]
[19,161,"Tlauka Maksymilian",null,null,"2006","Gim5",null,null,null,"00:09:23.600",null,null,null,"00:07:45"]
[20,165,"Woliński Franciszek",null,null,"2006","Gim5",null,null,null,"00:09:24.400",null,null,null,"00:07:45.800"]
[21,166,"Lemiszewski Mateusz ",null,null,"2006","SP Karpacz",null,null,null,"00:10:06.700",null,null,null,"00:08:28.100"]
[22,149,"Falęcki Jan",null,null,"2006","Gim5",null,null,null,"00:10:32.800",null,null,null,"00:08:54.200"]
[23,148,"Marcinkowski Filip",null,null,"2006","SP Nr 1 Świeradów - Zdrój",null,null,null,"00:11:11.500",null,null,null,"00:09:32.900"]
[24,169,"Sadocha Tomasz",null,null,"2006","SP Nr 1 Świeradów - Zdrój",null,null,null,"00:14:02.900",null,null,null,"00:12:24.300"]
[]
[null,null,"Zgłoszonych : 28"]
[null,null,"Nie ukończyło : 0"]
[null,null,"Nie wystartowało : 4 (  142 Stolarczyk Karol) (  144 Kusztal Igor) (  155 Klimas Michał) "]
[null,null,"         (  275 Cich Aleksander )"]
[null,null,"Dyskwalifikacja : 0"]
[null,null,"Ukończyło : 24"]
[]
[]
["Igrzyska Młodzieży dziew.(2005 i 2006) dyst.(2x1,5km) 3 km"]
[1,194,"Szajnowska Aleksandra",null,null,"2005","LUBWAKA",null,null,null,"00:07:00.900"]
[2,212,"Arendarczyk  Oliwia ",null,null,"2005","LUBWAKA",null,null,null,"00:07:03.700",null,null,null,{"$f":"K264-$K$15","v":"00:05:25.100"}]
[3,208,"Filip Nikola",null,null,"2006","GZSzP w Czarnym Borze",null,null,null,"00:07:22.100",null,null,null,"00:05:43.500"]
[4,220,"Garnkowska  Nikola",null,null,"2006","ZSP Lubawka",null,null,null,"00:07:30.900",null,null,null,"00:05:52.300"]
[5,217,"Narkiewicz Emilia",null,null,"2005","ZSO i MS SZKLARSKA POREBA",null,null,null,"00:07:43.500",null,null,null,"00:06:04.900"]
[6,218,"Germata  Majka ",null,null,"2006","ZSP Lubawka",null,null,null,"00:07:54.100",null,null,null,"00:06:15.500"]
[7,197,"Chrostek Adrianna",null,null,"2006","ZSO i MS SZKLARSKA POREBA",null,null,null,"00:08:14.800",null,null,null,"00:06:36.200"]
[8,215,"Kuś Anna",null,null,"2006","Gim5",null,null,null,"00:08:17.500",null,null,null,"00:06:38.900"]
[9,202,"Widlak Milena",null,null,"2006","GZSzP w Czarnym Borze",null,null,null,"00:08:22.300",null,null,null,"00:06:43.700"]
[10,190,"Zonenberg Julia",null,null,"2006","PSP nr 5",null,null,null,"00:08:23.700",null,null,null,"00:06:45.100"]
[11,222,"Szutenberg Alicja",null,null,"2006","ZSO i MS SZKLARSKA POREBA",null,null,null,"00:08:24.700",null,null,null,"00:06:46.100"]
[12,204,"Kozłowska Dagmara",null,null,"2005","SP 1 Piechowice",null,null,null,"00:08:26.700",null,null,null,"00:06:48.100"]
[13,192,"Znamirowska  Aleksandra  ",null,null,2006,"ZSP Lubawka",null,null,null,"00:09:22.800",null,null,null,"00:07:44.200"]
[14,203,"Czemarnik Natalia",null,null,"2006","PSP Mieroszów",null,null,null,"00:09:27.300",null,null,null,"00:07:48.700"]
[15,227,"Falkowska Karolina ",null,null,"2005","SP Karpacz",null,null,null,"00:09:33.800",null,null,null,"00:07:55.200"]
[16,193,"Bednarz Dominika",null,null,"2005","PSP w Kowalowej",null,null,null,"00:09:52.300",null,null,null,"00:08:13.700"]
[17,210,"Kulik Zuzanna ",null,null,"2006","SP Karpacz",null,null,null,"00:10:00.800",null,null,null,"00:08:22.200"]
[18,225,"Bieganowska Weronika",null,null,"2006","Gim5",null,null,null,"00:10:04.200",null,null,null,"00:08:25.600"]
[19,207,"Leniewicz Julia ",null,null,"2006","SP Karpacz",null,null,null,"00:10:09.700",null,null,null,"00:08:31.100"]
[20,221,"Rdzanek Amelia ",null,null,"2005","SP Karpacz",null,null,null,"00:10:16",null,null,null,"00:08:37.400"]
[21,224,"Szewczyk Honorata ",null,null,"2006","SP Karpacz",null,null,null,"00:10:21.300",null,null,null,"00:08:42.700"]
[22,195,"Usowicz Weronika",null,null,"2006","Gim5",null,null,null,"00:10:29.900",null,null,null,"00:08:51.300"]
[23,209,"Kuliś Amelia ",null,null,"2006","SP Karpacz",null,null,null,"00:10:38.900",null,null,null,"00:09:00.300"]
[24,216,"Tyblewska Małgorzata ",null,null,"2006","SP Karpacz",null,null,null,"00:10:42.400",null,null,null,"00:09:03.800"]
[25,213,"Grabska Natalia ",null,null,"2005","SP Karpacz",null,null,null,"00:10:57.700",null,null,null,"00:09:19.100"]
[26,201,"Rutkowska Hanna",null,null,"2006","SP Nr 1 Świeradów - Zdrój",null,null,null,"00:10:59.800",null,null,null,"00:09:21.200"]
[27,219,"Kołodziejska Julia ",null,null,"2006","SP Karpacz",null,null,null,"00:11:32.800",null,null,null,"00:09:54.200"]
[28,206,"Malec Nikola",null,null,"2006","SP Nr 1 Świeradów - Zdrój",null,null,null,"00:12:29.600",null,null,null,"00:10:51"]
[29,189,"Czerwińska Natalia",null,null,"2006","SP Nr 1 Świeradów - Zdrój",null,null,null,"00:12:47.800",null,null,null,"00:11:09.200"]
[30,205,"Szklarek Julia ",null,null,"2005","SP Karpacz",null,null,null,"00:14:26.700",null,null,null,"00:12:48.100"]
[]
[null,null,"Zgłoszonych : 39"]
[null,null,"Nie ukończyło : 0"]
[null,null,"Nie wystartowało : 9 (  191 Szewczuk Lidia) (  196 Melka Patrycja) (  198 Mazurek Anna)      "]
[null,null,"(  199 Biernat Zuzanna) (  200 Korzeniowska Paulina) (  211 Korzuch Julia) (  214 Głodek Wiktoria)"]
[null,null," (  223 Bizoń Martyna) (  226 Nawrocka Emila)"]
[null,null,"Dyskwalifikacja : 0"]
[null,null,"Ukończyło : 30"]

{"sheet":"pkt szkół","index":1,"n_rows":29,"n_cols":12,"rows_kept":29,"cut":false,"hidden":false,"merged":[[3,2,3,4],[3,8,3,10],[0,0,0,11],[1,0,1,11]]}
["FINAŁ DOLNOSLĄSKICH IGRZYSK DZIECI I IGRZYSK MŁODZIEŻY SZKOLNEJ W NARCIARSTWIE BIEGOWYM, JAKUSZYCE 9.03.2020"]
["PUNKTACJA DRUZYNOWA"]
[]
[null,"IGRZYSKA DZIECI","CHŁOPCY",null,null,null,null,"IGRZYSKA DZIECI","DZIEWCZĘTA"]
["MIEJSCE","SZKOŁA",2009,2008,2007,"SUMA","MIEJSCE","SZKOŁA",2009,2008,2007,"SUMA"]
[1,"SP1 Piechowce",103,"-",17,120,1,"ZSP Lubawka",86,52,35,173]
[2,"GZSP Czarny Bór",59,18,30,107,2,"SP1 Piechowce",88,14,56,158]
[3,"SP Sokołowsko",67,35,null,102,3,"SP Sosnówka",85,13,null,98]
[4,"SP1 Szklarska Poręba",58,4,22,84,4,"SP Sokołowsko",88,9,null,97]
[5,"ZSP Lubawka",3,59,17,79,5,"SP15 JELENIA GÓRA",60,10,7,77]
[6,"SP 1 Świeradów-Zdrój",70,8,"-",78,6,"SP1 Szklarska Poręba",72,"-",2,74]
[7,"SP Karpacz",32,20,15,67,7,"SP Karpacz",25,34,13,72]
[8,"SP15 JELENIA GÓRA",null,34,8,42,8,"PSP w Mieroszowie",47,11,null,58]
[9,"SP5 Szklarska Poręba",5,null,30,35,9,"GZSP Czarny Bór",27,3,24,54]
[10,"SP2 Piechowce",17,17,null,34,10,"SP5 Szklarska Poręba",1,2,37,40]
[11,"SPF CLEVER",29,null,null,29,11,"SP2 Piechowce",30,null,null,30]
[12,"PSP w Mieroszowie",14,9,null,23,12,"SP Wojcieszyce",2,1,17,20]
[13,"SP Sosnówka",21,null,null,21,13,"SPF CLEVER",null,11,null,11]
[13,"SP Wojcieszyce",13,8,null,21]
[15,"SP Kopaniec",2,12,6,20]
[16,"ZEW Włodowice",null,null,19,19]
[]
[null,"IGRZYSKA MŁODZIEŻY ROCZNIK 2005 I 2006",null,"CHŁOPCY",null,null,null,"IGRZYSKA MŁODZIEŻY ROCZNIK 2005 I 2006",null,"DZIEWCZĘTA"]
[1,"ZS SZKLARSKA PORĘBA",null,63,null,null,1,"SP LUBAWKA",null,86]
[2,"SP 15 JELENIA GÓRA",null,47,null,null,2,"ZS SZKLARSKA PORĘBA",null,70]
[3,"SP KARPACZ",null,34,null,null,3,"ZS CZARNY BÓR",null,50]
[4,"SP SOSNÓWKA",null,29,null,null,4,"SP 15 JELENIA GÓRA",null,45]
[5,"SP LUBAWKA",null,24,null,null,5,"SP KARPACZ",null,42]
[6,"ZS CZARNY BÓR",null,22,null,null,6,"PSP5",null,21]